{"text_format":"1","workbook":"xlsx","n_sheets":9,"sheets":["Invoice","Sales Report","Customer Report","Product Report","Customer Statement","Sales Rep. Report","Payment Report","©","Office-Kit.com.System"],"not_rendered":{"charts":0,"images":4,"macros":1,"external_links":0,"defined_names":264,"comments":0,"pivot_tables":0},"unopened":[],"bounds":{"document_bytes":16777216,"sheet_cells":100000,"rows_first":2000,"rows_last":500,"rows_between":2000,"halvings":0,"cell_chars":16384,"cell_head_chars":4096},"cells_cut":0,"cells_raw":0,"read":"whole","date_system":"1900"}

{"sheet":"Invoice","index":0,"n_rows":925,"n_cols":952,"rows_kept":925,"cut":false,"hidden":false,"merged":[[28,13,32,17],[33,13,33,17],[34,13,34,17],[12,23,12,25],[10,13,14,13],[19,23,19,25],[15,14,17,17],[18,14,22,17],[23,13,27,13],[23,14,27,17],[18,13,22,13],[15,13,17,13],[5,14,9,17],[10,14,14,17],[12,9,12,10],[9,9,9,10],[10,9,10,10],[11,9,11,10],[14,9,14,10],[5,13,9,13],[13,9,13,10],[23,5,23,7],[22,5,22,7],[17,5,17,6],[18,5,18,6],[21,5,21,7],[20,3,20,4],[20,5,20,7],[9,5,9,7],[10,5,10,7],[11,5,11,7],[14,5,14,7],[13,5,13,7],[12,5,12,7],[15,5,15,7],[18,3,18,4],[17,3,17,4],[0,20,0,21],[3,13,4,13],[3,14,4,17],[2,14,2,17],[0,13,0,14],[0,15,0,17],[0,18,0,19],[37,3,38,7],[44,6,44,10],[44,3,44,5],[0,2,0,11],[45,3,45,10],[29,5,29,7],[32,5,32,7],[30,5,30,7],[31,5,31,7],[41,8,41,9],[41,3,41,4],[27,5,27,7],[25,5,25,7],[24,5,24,7],[26,5,26,7],[28,5,28,7]]}
[null,null,null,null,null,null,null,null,null,null,null,null,null,"Current Database",null,"c5102",null,null,"Invoice Status",null,"Pending",null,null,null,null,null,null,null,null,null,null,null,null,null,null,null,null,null,null,null,null,null,null,null,null,null,null,null,null,null,null,null,null,null,null,null,null,null,null,null,null,null,null,null,null,null,null,null,null,null,null,null,null,null,null,null,null,null,null,null,null,null,null,null,null,null,null,null,null,null,null,null,null,null,null,null,null,null,null,null,null,null,null,null,null,null,null,null,null,null,null,null,null,null,null,null,null,null,null,null,null,null,null,null,null,null,null,null,null,null,null,null,null,null,null,null,null,null,null,null,null,null,null,null,null,null,null,null,null,null,null,null,null,null,null,null,null,null,null,null,null,null,null,null,null,null,null,null,null,null,null,null,null,null,null,null,null,null,null,null,null,null,null,null,null,null,null,null,null,null,null,null,null,null,null,null,null,null,null,null,null,null,null,null,null,null,null,null,null,null,null,null,null,null,null,null,null,null,null,null,null,null,null,null,null,null,null,null,null,null,null,null,null,null,null,null,null,null,null,null,null,null,null,null,null,null,null,null,null,null,null,null,null,null,null,null,null,null,null,null,null,null,null,null,null,null,null,null,null,null,null,null,null,null,null,null,null,null,null,null,null,null,null,null,null,null,null,null,null,null,null,null,null,null,null,null,null,null,null,null,null,null,null,null,null,null,null,null,null,null,null,null,null,null,null,null,null,null,null,null,null,null,null,null,null,null,null,null,null,null,null,null,null,null,null,null,null,null,null,null,null,null,null,null,null,null,null,null,null,null,null,null,null,null,null,null,null,null,null,null,null,null,null,null,null,null,null,null,null,null,null,null,null,null,null,null,null,null,null,null,null,null,null,null,null,null,null,null,null,null,null,null,null,null,null,null,null,null,null,null,null,null,null,null,null,null,null,null,null,null,null,null,null,null,null,null,null,null,null,null,null,null,null,null,null,null,null,null,null,null,null,null,null,null,null,null,null,null,null,null,null,null,null,null,null,null,null,null,null,null,null,null,null,null,null,null,null,null,null,null,null,null,null,null,null,null,null,null,null,null,null,null,null,null,null,null,null,null,null,null,null,null,null,null,null,null,null,null,null,null,null,null,null,null,null,null,null,null,null,null,null,null,null,null,null,null,null,null,null,null,null,null,null,null,null,null,null,null,null,null,null,null,null,null,null,null,null,null,null,null,null,null,null,null,null,null,null,null,null,null,null,null,null,null,null,null,null,null,null,null,null,null,null,null,null,null,null,null,null,null,null,null,null,null,null,null,null,null,null,null,null,null,null,null,null,null,null,null,null,null,null,null,null,null,null,null,null,null,null,null,null,null,null,null,null,null,null,null,null,null,null,null,null,null,null,null,null,null,null,null,null,null,null,null,null,null,null,null,null,null,null,null,null,null,null,null,null,null,null,null,null,null,null,null,null,null,null,null,null,null,null,null,null,null,null,null,null,null,null,null,null,null,null,null,null,null,null,null,null,null,null,null,null,null,null,null,null,null,null,null,null,null,null,null,null,null,null,null,null,null,null,null,null,null,null,null,null,null,null,null,null,null,null,null,null,null,null,null,null,null,null,null,null,null,null,null,null,null,null,null,null,null,null,null,null,null,null,null,null,null,null,null,null,null,null,null,null,null,null,null,null,null,null,null,null,null,null,null,null,null,null,null,null,null,null,null,null,null,null,null,null,null,null,null,null,null,null,null,null,null,null,null,null,null,null,null,null,null,null,null,null,null,null,null,null,null,null,null,null,null,null,null,null,null,null,null,null,null,null,null,null,null,null,null,null,null,null,null,null,null,null,null,null,null,null,null,null,null,null,null,null,null,null,null,null,null,null,null,null,null,null,null,null,null,null,null,null,null,null,null,null,null,null,null,null,null,null,null,null,null,null,null,null,null,null,null,null,null,null,null,null,null,null,null,null,null,null,null,null,null,null,null,null,null,null,null,null,null,null,null,null,null,null,null,null,null,null,null,null,null,null,null,null,null,null,null,null,null,null,null,null,null,null,null,null,null,null,null,null,null,null,null,null,null,null,null,null,null,null,null,null,null,null,null,null,null,null,null,null,null,null,null,null,null,null,null,null,null,null,null,null,null,null,null,null,null,null,null,null,null,null,null,null,null,null,null,null,null,null,null,null,"Standard Business Invoicing Template with Oval Buttonc5099"]
[]
[null,null,null,null,null,"Business / Company Name",null,null,null,null,"BUSINESS INVOICE",null,null,null,"To create an invoice (movie tutorial)"]
[null,null,null,null,null,"Street Address",null,null,null,"DATE:",null,null,null,1,"Click Clear & New."]
[null,null,null,null,null,"City, ST  ZIP Code",null,null,null,"INVOICE #:"]
[null,null,null,null,null,"Phone Number,Web Address, etc.",null,null,null,"Client #",null,null,null,2,"Fill client information into the BILL To section. Or click the \"on-sheet picker\" button to pick from existing customers."]
[]
["TaxSystem"]
[1,null,null,null,"BILL TO",null,null,null,"SHIP TO"]
[null,null,null,null,"Name",null,null,null,"Name"]
[0,null,null,null,"Address",null,null,null,"Address",null,null,null,null,3,"Fill products / items, or click the \"on-sheet picker\" button to pick from existing items."]
[0,null,null,null,"City, State ZIP",null,null,null,"City, State ZIP"]
[0.08]
[null,null,null,null,"Country",null,null,null,"Country"]
[0.06,null,null,null,"Phone",null,null,null,"Contact"]
[null,null,null,null,"Email",null,null,null,null,null,null,null,null,4,"Click Save Invoice to create a new invoice."]
[]
[null,null,null,"P.O. #",null,"Sales Rep. Name",null,"Ship Date","Ship Via","Terms","Due Date"]
[null,null,null,null,null,null,null,null,null,null,null,null,null,5,"Extract, Email or print the invoice by clicking the corresponding button on the task pane."]
[]
["Taxable","cost",null,"# / Taxable",null,"Description",null,null,"Quantity","Unit Price","Line Total"]
[true,0,null,"p006",null,"Business invoicing sample - item 6",null,null,6,60,{"$f":"ROUND(oknQuantity_1*oknPrice_1,2)","v":360}]
[true,0,null,"p007",null,"Business invoicing sample - item 7",null,null,7,70,{"$f":"ROUND(oknQuantity_2*oknPrice_2,2)","v":490}]
[0,0,null,"p1008",null,"Business invoicing sample - item 8",null,null,8,80,{"$f":"ROUND(oknQuantity_3*oknPrice_3,2)","v":640},null,null,6,"Click the Help button on the Invoice ribbon tab to open detailed documents"]
[0,0,null,"p1009",null,"Business invoicing sample - item 9",null,null,9,90,{"$f":"ROUND(oknQuantity_4*oknPrice_4,2)","v":810}]
[0,0,null,"p1010",null,"Business invoicing sample - item 10",null,null,10,100,{"$f":"ROUND(oknQuantity_5*oknPrice_5,2)","v":1000}]
[0,0,null,null,null,null,null,null,0,0,{"$f":"ROUND(oknQuantity_6*oknPrice_6,2)","v":0}]
[0,0,null,null,null,null,null,null,0,0,{"$f":"ROUND(oknQuantity_7*oknPrice_7,2)","v":0}]
[0,0,null,null,null,null,null,null,0,0,{"$f":"ROUND(oknQuantity_8*oknPrice_8,2)","v":0},null,null,"Need a different invoice format? Visit our invoice template database"]
[0,0,null,null,null,null,null,null,0,0,{"$f":"ROUND(oknQuantity_9*oknPrice_9,2)","v":0}]
[0,0,null,null,null,null,null,null,0,0,{"$f":"ROUND(oknQuantity_10*oknPrice_10,2)","v":0}]
[0,0,null,null,null,null,null,null,0,0,{"$f":"ROUND(oknQuantity_11*oknPrice_11,2)","v":0}]
[0,0,null,null,null,null,null,null,0,0,{"$f":"ROUND(oknQuantity_12*oknPrice_12,2)","v":0}]
[null,{"$f":"SUM(oknTaxable_1:oknTaxable_12*oknLineTotal_1:oknLineTotal_12)","v":850},null,null,null,null,null,null,null,"SUBTOTAL",{"$f":"SUM(oknLineTotal_1:oknLineTotal_12)","v":3300},null,null,"InvoicingTemplates.com"]
[null,null,null,null,null,null,null,null,"TAX",0.08,{"$f":"ROUND(IF(oknTaxType=0,0, oknTax1Rate*(oknLineTotalTaxable+IF(oknTaxTotalIncludingShippingCost=0,0,oknShippingCost))),2)","v":68},null,null,"uniformsoft.com"]
[null,null,null,null,null,null,null,null,"GST",0.06,{"$f":"ROUND(IF(oknTaxType<>2,0,oknTax2Rate*(oknLineTotalTaxable+IF(oknTaxTotalIncludingShippingCost=0,0,oknShippingCost)+IF(oknTax2IsAppliedToTax1=0,0,oknTax1))),2)","v":0}]
[null,null,null,"NOTES:",null,null,null,null,null,"SHIPPING & HANDLING",0]
[null,null,null,null,null,null,null,null,null,"TOTAL",{"$f":"ROUND(oknSubTotal + oknShippingCost + IF(oknTaxType=0,0,IF(oknTaxType=1,oknTax1,oknTax1+oknTax2)),2)","v":3368}]
[null,0,null,null,null,null,null,null,null,"PAID",{"$f":"oknPayments","v":0}]
[null,null,null,null,null,null,null,null,null,"TOTAL DUE",{"$f":"ROUND(oknTotal-oknPayments,2)","v":3368}]
[null,null,null,"PAYMENT DETAIL"]
[null,null,null,"DATE",null,"TOTAL","APPLIED","TYPE",null,null,"NOTES"]
[]
[]
[null,null,null,"Total Due in English Words",null,null,{"$f":"SpellNumber(oknBalanceDue)","v":"Three Thousand Three Hundred Sixty Eight Dollars and No Cents"}]
[null,null,null,"THANK YOU FOR YOUR BUSINESS! "]
[]
[]
[]
[]
[]
[]
[]
[]
[]
[]
[]
[]
[]
[]
[]
[]
[]
[]
[]
[]
[]
[]
[]
[]
[]
[]
[]
[]
[]
[]
[]
[]
[]
[]
[]
[]
[]
[]
[]
[]
[]
[]
[]
[]
[]
[]
[]
[]
[]
[]
[]
[]
[]
[]
[]
[]
[]
[]
[]
[]
[]
[]
[]
[]
[]
[]
[]
[]
[]
[]
[]
[]
[]
[]
[]
[]
[]
[]
[]
[]
[]
[]
[]
[]
[]
[]
[]
[]
[]
[]
[]
[]
[]
[]
[]
[]
[]
[]
[]
[]
[]
[]
[]
[]
[]
[]
[]
[]
[]
[]
[]
[]
[]
[]
[]
[]
[]
[]
[]
[]
[]
[]
[]
[]
[]
[]
[]
[]
[]
[]
[]
[]
[]
[]
[]
[]
[]
[]
[]
[]
[]
[]
[]
[]
[]
[]
[]
[]
[]
[]
[]
[]
[]
[]
[]
[]
[]
[]
[]
[]
[]
[]
[]
[]
[]
[]
[]
[]
[]
[]
[]
[]
[]
[]
[]
[]
[]
[]
[]
[]
[]
[]
[]
[]
[]
[]
[]
[]
[]
[]
[]
[]
[]
[]
[]
[]
[]
[]
[]
[]
[]
[]
[]
[]
[]
[]
[]
[]
[]
[]
[]
[]
[]
[]
[]
[]
[]
[]
[]
[]
[]
[]
[]
[]
[]
[]
[]
[]
[]
[]
[]
[]
[]
[]
[]
[]
[]
[]
[]
[]
[]
[]
[]
[]
[]
[]
[]
[]
[]
[]
[]
[]
[]
[]
[]
[]
[]
[]
[]
[]
[]
[]
[]
[]
[]
[]
[]
[]
[]
[]
[]
[]
[]
[]
[]
[]
[]
[]
[]
[]
[]
[]
[]
[]
[]
[]
[]
[]
[]
[]
[]
[]
[]
[]
[]
[]
[]
[]
[]
[]
[]
[]
[]
[]
[]
[]
[]
[]
[]
[]
[]
[]
[]
[]
[]
[]
[]
[]
[]
[]
[]
[]
[]
[]
[]
[]
[]
[]
[]
[]
[]
[]
[]
[]
[]
[]
[]
[]
[]
[]
[]
[]
[]
[]
[]
[]
[]
[]
[]
[]
[]
[]
[]
[]
[]
[]
[]
[]
[]
[]
[]
[]
[]
[]
[]
[]
[]
[]
[]
[]
[]
[]
[]
[]
[]
[]
[]
[]
[]
[]
[]
[]
[]
[]
[]
[]
[]
[]
[]
[]
[]
[]
[]
[]
[]
[]
[]
[]
[]
[]
[]
[]
[]
[]
[]
[]
[]
[]
[]
[]
[]
[]
[]
[]
[]
[]
[]
[]
[]
[]
[]
[]
[]
[]
[]
[]
[]
[]
[]
[]
[]
[]
[]
[]
[]
[]
[]
[]
[]
[]
[]
[]
[]
[]
[]
[]
[]
[]
[]
[]
[]
[]
[]
[]
[]
[]
[]
[]
[]
[]
[]
[]
[]
[]
[]
[]
[]
[]
[]
[]
[]
[]
[]
[]
[]
[]
[]
[]
[]
[]
[]
[]
[]
[]
[]
[]
[]
[]
[]
[]
[]
[]
[]
[]
[]
[]
[]
[]
[]
[]
[]
[]
[]
[]
[]
[]
[]
[]
[]
[]
[]
[]
[]
[]
[]
[]
[]
[]
[]
[]
[]
[]
[]
[]
[]
[]
[]
[]
[]
[]
[]
[]
[]
[]
[]
[]
[]
[]
[]
[]
[]
[]
[]
[]
[]
[]
[]
[]
[]
[]
[]
[]
[]
[]
[]
[]
[]
[]
[]
[]
[]
[]
[]
[]
[]
[]
[]
[]
[]
[]
[]
[]
[]
[]
[]
[]
[]
[]
[]
[]
[]
[]
[]
[]
[]
[]
[]
[]
[]
[]
[]
[]
[]
[]
[]
[]
[]
[]
[]
[]
[]
[]
[]
[]
[]
[]
[]
[]
[]
[]
[]
[]
[]
[]
[]
[]
[]
[]
[]
[]
[]
[]
[]
[]
[]
[]
[]
[]
[]
[]
[]
[]
[]
[]
[]
[]
[]
[]
[]
[]
[]
[]
[]
[]
[]
[]
[]
[]
[]
[]
[]
[]
[]
[]
[]
[]
[]
[]
[]
[]
[]
[]
[]
[]
[]
[]
[]
[]
[]
[]
[]
[]
[]
[]
[]
[]
[]
[]
[]
[]
[]
[]
[]
[]
[]
[]
[]
[]
[]
[]
[]
[]
[]
[]
[]
[]
[]
[]
[]
[]
[]
[]
[]
[]
[]
[]
[]
[]
[]
[]
[]
[]
[]
[]
[]
[]
[]
[]
[]
[]
[]
[]
[]
[]
[]
[]
[]
[]
[]
[]
[]
[]
[]
[]
[]
[]
[]
[]
[]
[]
[]
[]
[]
[]
[]
[]
[]
[]
[]
[]
[]
[]
[]
[]
[]
[]
[]
[]
[]
[]
[]
[]
[]
[]
[]
[]
[]
[]
[]
[]
[]
[]
[]
[]
[]
[]
[]
[]
[]
[]
[]
[]
[]
[]
[]
[]
[]
[]
[]
[]
[]
[]
[]
[]
[]
[]
[]
[]
[]
[]
[]
[]
[]
[]
[]
[]
[]
[]
[]
[]
[]
[]
[]
[]
[]
[]
[]
[]
[]
[]
[]
[]
[]
[]
[]
[]
[]
[]
[]
[]
[]
[]
[]
[]
[]
[]
[]
[]
[]
[]
[]
[]
[]
[]
[]
[]
[]
[]
[]
[]
[]
[]
[]
[]
[]
[]
[]
[]
[]
[]
[]
[]
[]
[]
[]
[]
[]
[]
[]
[]
[]
[]
[]
[]
[]
[]
[]
[]
["Standard Business Invoicing Format with Oval Button"]

{"sheet":"Sales Report","index":1,"n_rows":11,"n_cols":17,"rows_kept":11,"cut":false,"hidden":false,"merged":[]}
[]
[null,{"$f":"oknCompanyName","v":"Business / Company Name"}]
[null,{"$f":"oknCompanyAddress","v":"Street Address"}]
[null,{"$f":"oknCompanyCityStateZip","v":"City, ST  ZIP Code"}]
[null,{"$f":"oknCompanyContact","v":"Phone Number,Web Address, etc."}]
[]
[null,"Date:"]
[null,"From"]
[null,"To"]
[]
[null,"Month","Date","Cost","Invoice #","P.O. #","Sales Rep.","Subtotal","Shipping",{"$f":"oknTax1Name","v":"TAX"},{"$f":"oknTax2Name","v":"GST"},"Total","Paid","Balance Due","Due Date","Payment Term","Customer"]

{"sheet":"Customer Report","index":2,"n_rows":10,"n_cols":17,"rows_kept":10,"cut":false,"hidden":false,"merged":[]}
[]
[null,{"$f":"oknCompanyName","v":"Business / Company Name"}]
[null,{"$f":"oknCompanyAddress","v":"Street Address"}]
[null,{"$f":"oknCompanyCityStateZip","v":"City, ST  ZIP Code"}]
[null,{"$f":"oknCompanyContact","v":"Phone Number,Web Address, etc."}]
[null,"Date:"]
[null,"From"]
[null,"To"]
[]
[null,"Customer ID","Date","Name","Invoice #","Cost",{"$f":"oknTax1Name","v":"TAX"},{"$f":"oknTax2Name","v":"GST"},"Shipping Cost","Paid","Balance Due","Subtotal","Total","Due Date","P.O. #","Sales Rep.","Payment Term"]

{"sheet":"Product Report","index":3,"n_rows":10,"n_cols":9,"rows_kept":10,"cut":false,"hidden":false,"merged":[]}
[]
[null,{"$f":"oknCompanyName","v":"Business / Company Name"}]
[null,{"$f":"oknCompanyAddress","v":"Street Address"}]
[null,{"$f":"oknCompanyCityStateZip","v":"City, ST  ZIP Code"}]
[null,{"$f":"oknCompanyContact","v":"Phone Number,Web Address, etc."}]
[null,"Date:"]
[null,"From"]
[null,"To"]
[]
[null,"Product ID","Date","Invoice #","Description","Quantity","Price","Line Total","Unit Cost"]

{"sheet":"Customer Statement","index":4,"n_rows":19,"n_cols":8,"rows_kept":19,"cut":false,"hidden":false,"merged":[[7,5,7,6],[8,5,8,6],[10,5,10,6]]}
[]
[null,{"$f":"oknCompanyName","v":"Business / Company Name"}]
[null,{"$f":"oknCompanyAddress","v":"Street Address"}]
[null,{"$f":"oknCompanyCityStateZip","v":"City, ST  ZIP Code"}]
[null,{"$f":"oknCompanyContact","v":"Phone Number,Web Address, etc."}]
[]
[null,"Bill To:"]
[null,"ID:",null,null,null,"Balance forward",null,0]
[null,"Name:",null,null,null,"Current balance",null,0]
[null,"Address:"]
[null,"City,ST ZIP:",null,null,null,"Invoice total",null,0]
[null,"Country:",null,null,null,"Payment total",null,0]
[null,"Phone:"]
[]
[null,"Statement Period:"]
[null,"From:"]
[null,"To:"]
[]
[null,"Date","Description","Document#","Due Date","Status","Amount","Balance"]

{"sheet":"Sales Rep. Report","index":5,"n_rows":12,"n_cols":14,"rows_kept":12,"cut":false,"hidden":false,"merged":[]}
[]
[null,{"$f":"oknCompanyName","v":"Business / Company Name"}]
[null,{"$f":"oknCompanyAddress","v":"Street Address"}]
[null,{"$f":"oknCompanyCityStateZip","v":"City, ST  ZIP Code"}]
[null,{"$f":"oknCompanyContact","v":"Phone Number,Web Address, etc."}]
[]
[null,"Date:"]
[null,"From"]
[null,"To"]
[]
[]
[null,"Sales Rep.","Date","P.O. #","Invoice #","Cost",{"$f":"oknTax1Name","v":"TAX"},{"$f":"oknTax2Name","v":"GST"},"Shipping","Total","Paid","Subtotal","Balance Due","Due Date"]

{"sheet":"Payment Report","index":6,"n_rows":12,"n_cols":10,"rows_kept":12,"cut":false,"hidden":false,"merged":[]}
[]
[null,{"$f":"oknCompanyName","v":"Business / Company Name"}]
[null,{"$f":"oknCompanyAddress","v":"Street Address"}]
[null,{"$f":"oknCompanyCityStateZip","v":"City, ST  ZIP Code"}]
[null,{"$f":"oknCompanyContact","v":"Phone Number,Web Address, etc."}]
[]
[null,"Date:"]
[null,"From"]
[null,"To"]
[]
[]
[null,"Type","Date","Invoice #","Check / Money Order #","Notes","Amount","Total Applied","Customer ID","Customer Name"]

{"sheet":"©","index":7,"n_rows":17,"n_cols":2,"rows_kept":17,"cut":false,"hidden":false,"merged":[]}
[null,"Standard Business Invoicing Template with Oval Button - c5099"]
[]
[null,"By InvoicingTemplate.com"]
[null,"Template URL"]
[]
[null,"© 2016 InvoicingTemplate.com / Uniform Software LTD"]
[]
[null,"This spreadsheet, including all worksheets and associated content is considered a copyrighted work under the United States and other copyright laws."]
[]
[null,"Do not submit copies or modifications of this template to any website or online template gallery."]
[]
[null,"Please review the following Terms of Use to learn how you may or may not use this template. Thank you."]
[]
[null,"See our Terms of Use / Copyright Notic"]
[null,"https://www.invoicingtemplate.com/about.html"]
[]
[null,"Do not delete this worksheet. If necessary, you may hide it by right-clicking on the tab and selecting Hide."]

{"sheet":"Office-Kit.com.System","index":8,"n_rows":39,"n_cols":5,"rows_kept":39,"cut":false,"hidden":true,"merged":[]}
["office-kit.com","billing software, invoicing software, invoice template"]
["uniformsoft.com","billing template, invoicing form, free invoice template"]
[]
[]
["SoftID","OkInv 1.0"]
["DbPath","c5102.mdb"]
["HowToCloseBook",2,null,"Valid Value:","0=Auto discard changes,  1=AutoSave,   2=DefaultOperation,prompt "]
["SavingInvoicePromptForPayment",1]
["SavingInvoiceClearWorksheet",0]
["ExtractingReportRemoveRowCol",1]
["ExtractingInvoiceRemoveRowCol",1]
["ExtractingProtectWorksheet",1]
["ExtractingProtectPwd"]
["ExtractingEmailInvoice",0]
["ExtractingWhereToPlaceNewInvoice","$C$3"]
["ExtractingRowsToRemoveOnReportWorksheet",1]
["ExtractingInvoiceCopyPageSetup",1]
["InvoiceBodyMinNumber",1]
["InvoiceBodyMaxNumber",12]
["Allow incomplete line",1]
[]
["Allow zero line total",1]
[null,"3FI6I6I5DI1D"]
[]
["Disallow negative stock",0]
[]
[]
[]
[]
[null,1]
[]
[]
[null,2]
[null,1]
[null,1]
[null,1]
[]
[null,1]
[null,1]